Cogmind - Beta 13 @@@ ROGUE MODE // 2024.04.16 @ 18:55:00 Player: m1m1c Result: Escaped! Performance ------------- Evolutions (9) 4500 Regions Visited (18) 3600 Robots Destroyed (19) 95 Value Destroyed (379) 379 Prototype IDs (3) 60 Alien Tech Used (0) 0 Bonus (3791) 3791 TOTAL SCORE: 12425 Bonus ------- Follower Combat Kills 491 Aligned with FarCom 300 Win 3000 Cogmind --------- Core Integrity 1403/1600 Matter 19/300 Energy 348/350 System Corruption 1% Temperature Cool (4) Movement Flying (37) Location To Epsilon Eridani Parts ------- > --- POWER (2) -------- Enhanced Fission Core > --- PROPULSION (10) -- Field Propulsion Array Field Propulsion Array > --- UTILITY (11) ----- Advanced Signal Interpreter Improved Light Armor Plating Hacking Suite Improved Hacking Suite Advanced Hacking Suite System Shield Advanced System Shield > --- WEAPON (2) ------- Missile Launcher > --- INVENTORY (5) ---- Improved Antigrav System Improved Gyrokinetic Inverter Antigrav Array Improved Light Armor Plating Peak State ------------ > --- POWER ------------ Light Angular Momentum Engine Enhanced Fission Core > --- PROPULSION ------- Cesium-ion Thruster Cesium-ion Thruster Xenon Bombardment Thruster Field Propulsion Drive Nuclear Pulse Array Impulse Thruster > --- UTILITY ---------- Advanced Cryofiber Web Medium Storage Unit Advanced Signal Interpreter Transmission Jammer Improved Light Armor Plating Hacking Suite Improved Hacking Suite Advanced Hacking Suite System Shield Advanced System Shield > --- WEAPON ----------- (None) > --- INVENTORY -------- Particle Reactor Linear Gravjet Linear Gravjet ECM Suite Advanced Phase Shifter Improved Light Armor Plating Improved Light Armor Plating Improved Light Armor Plating Improved Field Recycling Unit Missile Launcher [Rating: 94] Favorites ----------- Power Light Ion Engine Engine Light Ion Engine Power Core Enhanced Fission Core Propulsion Cesium-ion Thruster Leg Aluminum Leg Hover Unit Gravmag System Flight Unit Cesium-ion Thruster Utility Medium Storage Unit Device Transmission Jammer Storage Medium Storage Unit Processor Advanced Signal Interpreter Hackware Advanced Hacking Suite Protection Improved Light Armor Plating Weapon Chainsword Energy Gun Arc Projector Ballistic Gun Light Assault Rifle Launcher Grenade Launcher Special Weapon Remote Datajack Slashing Weapon Chainsword Build | -11 -10 -10 -10 -9 -8 -7 -7 -7 -7 -6 -6 -5 -5 -5 -4 -3 -2 -1 ------- Run | Yrd Mat Min Exi Min Mat Fac Was Fac Sto Fac Ext Fac Was Fac Fac Res Res Acc Slots Evolved 18 | . . . . . 4 2 . . . 2 . 2 . . 2 2 2 2 Power 1 | . . . . . . . . . . . . . . . . 1 . . Propulsion 8 | . . . . . 3 . . . . 1 . 1 . . . . 2 1 Utility 9 | . . . . . 1 2 . . . 1 . 1 . . 2 1 . 1 Weapon . | . . . . . . . . . . . . . . . . . . . Parts Attached 103 | . 5 . 2 4 4 1 . 13 1 17 1 23 . 11 8 5 2 6 Power 18 | . . . . 1 . 1 . . . 3 . 8 . 1 1 2 . 1 Engine 6 | . . . . 1 . 1 . . . 1 . 1 . 1 . 1 . . Core 12 | . . . . . . . . . . 2 . 7 . . 1 1 . 1 Reactor . | . . . . . . . . . . . . . . . . . . . Propulsion 38 | . . . 2 1 3 . . . . 8 . 9 . 8 3 1 1 2 Treads . | . . . . . . . . . . . . . . . . . . . Leg 3 | . . . 2 1 . . . . . . . . . . . . . . Wheel . | . . . . . . . . . . . . . . . . . . . Hover 17 | . . . . . . . . . . 6 . 3 . 6 1 1 . . Flight 18 | . . . . . 3 . . . . 2 . 6 . 2 2 . 1 2 Utility 35 | . 2 . . . 1 . . 9 1 4 1 6 . 2 4 2 1 2 Device 13 | . 1 . . . . . . 5 1 1 . 3 . . . 1 1 . Storage 1 | . 1 . . . . . . . . . . . . . . . . . Processor 1 | . . . . . . . . . . . . . . 1 . . . . Hackware 6 | . . . . . . . . 2 . . . 3 . . 1 . . . Protection 14 | . . . . . 1 . . 2 . 3 1 . . 1 3 1 . 2 Artifact . | . . . . . . . . . . . . . . . . . . . Weapon 12 | . 3 . . 2 . . . 4 . 2 . . . . . . . 1 Energy Gun 1 | . . . . . . . . 1 . . . . . . . . . . Energy Cannon . | . . . . . . . . . . . . . . . . . . . Ballistic Gun 3 | . 1 . . 1 . . . 1 . . . . . . . . . . Ballistic Cannon . | . . . . . . . . . . . . . . . . . . . Launcher 5 | . 2 . . 1 . . . 1 . . . . . . . . . 1 Special Weapon 1 | . . . . . . . . . . 1 . . . . . . . . Impact Weapon . | . . . . . . . . . . . . . . . . . . . Slashing Weapon 2 | . . . . . . . . 1 . 1 . . . . . . . . Piercing Weapon . | . . . . . . . . . . . . . . . . . . . Special Melee Weapon . | . . . . . . . . . . . . . . . . . . . Unidentified Prototypes 3 | . . . . . 1 . . . . . . 1 . . . . 1 . Parts Lost 21 | . . . . 3 1 1 . . 2 1 2 . . 1 . 4 . 6 Power 4 | . . . . 1 1 . . . 1 . . . . . . . . 1 Propulsion 9 | . . . . . . . . . . 1 1 . . 1 . 3 . 3 Utility 4 | . . . . . . . . . . . 1 . . . . 1 . 2 Weapon 4 | . . . . 2 . 1 . . 1 . . . . . . . . . Highest Loss Streak 5 | . . . . 2 1 1 . . 1 1 1 . . 1 . 4 . 5 To Critical Strikes . | . . . . . . . . . . . . . . . . . . . Average Slot Usage (%) 75 | . 97 100 99 95 53 43 38 71 65 70 100 84 82 79 88 83 65 52 Engine 6 | . 14 14 14 13 8 5 7 7 3 . . . . 1 1 4 4 2 Core 1 | . . . . . . . . . . 4 6 4 5 3 3 3 . 1 Leg 5 | . 28 28 27 28 . . . . . . . . . . . . . . Hover 3 | . . . . . . . . . . 9 40 3 . 4 11 . . . Flight 13 | . . . . . 18 15 15 15 15 11 . 26 29 26 24 27 17 10 Device 7 | . 10 14 14 14 . . . 9 6 9 6 7 5 5 5 8 13 9 Storage 7 | . 14 14 14 14 9 7 7 7 7 6 6 5 5 5 5 4 4 3 Hackware 11 | . . . . . . . . 13 15 13 6 19 23 23 25 23 21 20 Protection 5 | . . . . . 8 7 7 4 7 7 19 5 5 3 5 4 . 1 Ballistic Gun 4 | . 25 14 14 14 9 6 . 1 . . . . . . . . . . Launcher 2 | . 2 14 14 10 . . . 2 . . . . . . . . . . Slashing Weapon 1 | . . . . . . . . 4 7 5 6 . . . . . . . Naked Turns . | . . . . . . . . . . . . . . . . . . . Heaviest Build 44 | 11 19 19 19 18 17 24 23 42 43 44 36 33 30 30 27 39 24 30 Greatest Support 55 | 20 20 20 20 20 55 55 55 55 55 55 54 54 30 30 43 43 33 30 Greatest Overweight (x) 7 | . . . 6 . . . . 7 . 1 . 1 . 2 . . . 7 Average Overweight (x) . | . . . . . . . . . . . . . . . . . . . Largest Inventory Capacity 10 | . 10 10 10 10 10 10 10 10 10 10 10 10 10 10 10 10 10 10 Average Capacity 9 | . 9 10 10 10 10 10 10 10 10 10 10 10 10 10 10 10 10 9 Most Carried 10 | . 10 10 10 10 10 10 10 10 10 10 10 10 10 10 10 10 10 10 Average Carried 9 | . 7 10 9 9 9 9 9 9 9 9 9 9 10 9 8 9 9 9 Final Capacity 10 | 8 10 10 10 10 10 10 10 10 10 10 10 10 10 10 10 10 10 5 Final Carried 10 | 6 10 10 10 10 10 10 10 10 10 10 10 10 10 10 10 10 9 5 Class Distribution -------------------- 38% | Mutant 17% | Hacker-Mutant 13% | Hacker-Sprinter 11% | Wizard-Sprinter 7% | Wizard-Mutant 6% | Hacker-Ninja 4% | Commander-Mutant Dominant Class ---------------- Mutant | -10/Materials Mutant | -10/Mines Mutant | -10/Exiles Mutant | -9/Mines Mutant | -8/Materials Mutant | -7/Factory Mutant | -7/Waste Hacker-Mutant | -7/Factory Hacker-Mutant | -7/Storage Hacker-Mutant | -6/Factory Commander-Mutant | -6/Extension Hacker-Sprinter | -5/Factory Hacker-Sprinter | -5/Waste Hacker-Sprinter | -5/Factory Wizard-Sprinter | -4/Factory Wizard-Sprinter | -3/Research Wizard-Sprinter | -2/Research Wizard-Mutant | -1/Access Resources | -11 -10 -10 -10 -9 -8 -7 -7 -7 -7 -6 -6 -5 -5 -5 -4 -3 -2 -1 ----------- Run | Yrd Mat Min Exi Min Mat Fac Was Fac Sto Fac Ext Fac Was Fac Fac Res Res Acc Matter Collected 841 | 200 4 . . 104 . . . . . 195 119 173 . . . . . 46 Remotely . | . . . . . . . . . . . . . . . . . . . Salvage Created 564 | . 167 . . 132 . . . . . 265 . . . . . . . . Parts 31 | . 10 . . 13 . . . . . 8 . . . . . . . . Haulers Intercepted 1 | . 1 . . . . . . . . . . . . . . . . . Recyclers Shooed . | . . . . . . . . . . . . . . . . . . . Parts Field Recycled 16 | . . . . . . . . 7 . 9 . . . . . . . . Retrieved Matter 368 | . . . . . . . . 196 . 172 . . . . . . . . Parts Self-Destructed . | . . . . . . . . . . . . . . . . . . . Prevented . | . . . . . . . . . . . . . . . . . . . Kills | -11 -10 -10 -10 -9 -8 -7 -7 -7 -7 -6 -6 -5 -5 -5 -4 -3 -2 -1 ------- Run | Yrd Mat Min Exi Min Mat Fac Was Fac Sto Fac Ext Fac Was Fac Fac Res Res Acc Combat Hostiles Destroyed 16 | . 5 . . 10 . . . 1 . . . . . . . . . . Guns 4 | . 1 . . 3 . . . . . . . . . . . . . . AOE 12 | . 4 . . 7 . . . 1 . . . . . . . . . . Classes Destroyed 7 | . 4 . . 1 . . . 1 . 1 . . . . . . . . Builder 1 | . 1 . . . . . . . . . . . . . . . . . Hauler 1 | . 1 . . . . . . . . . . . . . . . . . Recycler 2 | . . . . . . . . . . 2 . . . . . . . . Swarmer 10 | . 3 . . 7 . . . . . . . . . . . . . . Grunt 4 | . 2 . . 2 . . . . . . . . . . . . . . Programmer 1 | . . . . . . . . 1 . . . . . . . . . . Assembled 1 | . . . . 1 . . . . . . . . . . . . . . Best Kill Streak 4 | . 3 . . 4 . . . 1 . 2 . . . . . . . . Combat Bots Only 4 | . 3 . . 4 . . . 1 . . . . . . . . . . Max Kills in Single Turn 3 | . 3 . . 3 . . . 1 . 1 . . . . . . . . Gunslinging . | . . . . . . . . . . . . . . . . . . . Exploded 3 | . 3 . . 3 . . . 1 . . . . . . . . . . Melee . | . . . . . . . . . . . . . . . . . . . Uniques/NPCs Destroyed . | . . . . . . . . . . . . . . . . . . . Combat | -11 -10 -10 -10 -9 -8 -7 -7 -7 -7 -6 -6 -5 -5 -5 -4 -3 -2 -1 -------- Run | Yrd Mat Min Exi Min Mat Fac Was Fac Sto Fac Ext Fac Was Fac Fac Res Res Acc Hostile Shots Fired 473 | . 31 . . 50 63 45 . 14 122 . 52 2 . 4 4 20 2 64 Missed 227 | . 12 . . 13 30 23 . 5 67 . 17 1 . 1 3 13 1 41 Damage Taken 3831 | . 226 . . 498 392 335 . 202 517 41 458 22 . 178 25 296 41 600 Core 582 | . 55 . . 95 14 46 . 35 35 . 30 . . 20 25 30 . 197 Absorbed by Shields . | . . . . . . . . . . . . . . . . . . . Regen/Repaired (Parts) 22 | . . . . . . . . . . . . . . 22 . . . . Core Remaining (%) 89 | 100 . . . 40 97 . . . 83 . 96 . . 98 97 97 100 87 Volleys Fired 50 | . 12 . . 26 4 . . 8 . . . . . . . . . . Largest 2 | . 2 . . 2 1 . . 1 . . . . . . . . . . Hottest 55 | . 50 . . 50 20 . . 55 . . . . . . . . . . Shots Fired 69 | . 23 . . 34 4 . . 8 . . . . . . . . . . Gun 49 | . 18 . . 26 4 . . 1 . . . . . . . . . . Cannon . | . . . . . . . . . . . . . . . . . . . Launcher 20 | . 5 . . 8 . . . 7 . . . . . . . . . . Special . | . . . . . . . . . . . . . . . . . . . Kinetic 48 | . 18 . . 26 4 . . . . . . . . . . . . . Thermal . | . . . . . . . . . . . . . . . . . . . Explosive 20 | . 5 . . 8 . . . 7 . . . . . . . . . . Electromagnetic 1 | . . . . . . . . 1 . . . . . . . . . . Robot Hit Streak 11 | . 7 . . 11 4 . . 2 . . . . . . . . . . Robot Miss Streak 3 | . 1 . . 3 2 . . 3 . . . . . . . . . . Penetration Max . | . . . . . . . . . . . . . . . . . . . Secondary Targets . | . . . . . . . . . . . . . . . . . . . Shots Hit Robots 46 | . 19 . . 18 2 . . 3 . 4 . . . . . . . . Core Hits 37 | . 12 . . 17 1 . . 5 . 1 1 . . . . . . . Critical Kills . | . . . . . . . . . . . . . . . . . . . Critical Parts Destroyed . | . . . . . . . . . . . . . . . . . . . Critical Strikes . | . . . . . . . . . . . . . . . . . . . Melee Attacks 5 | . . . . . . . . . 1 4 . . . . . . . . Impact . | . . . . . . . . . . . . . . . . . . . Slashing 5 | . . . . . . . . . 1 4 . . . . . . . . Piercing . | . . . . . . . . . . . . . . . . . . . Sneak Attacks 2 | . . . . . . . . . . 2 . . . . . . . . Combat Hostiles . | . . . . . . . . . . . . . . . . . . . Follow-up Attacks . | . . . . . . . . . . . . . . . . . . . Damage Inflicted 1562 | . 413 . . 654 18 1 . 182 . 242 40 . . . . 7 1 4 Guns 322 | . 148 . . 156 18 . . . . . . . . . . . . . Cannons . | . . . . . . . . . . . . . . . . . . . Explosions 944 | . 265 . . 498 . . . 181 . . . . . . . . . . Melee 242 | . . . . . . . . . . 242 . . . . . . . . Ramming 54 | . . . . . . 1 . 1 . . 40 . . . . 7 1 4 Kinetic 322 | . 148 . . 156 18 . . . . . . . . . . . . . Thermal 84 | . . . . 84 . . . . . . . . . . . . . . Explosive 860 | . 265 . . 414 . . . 181 . . . . . . . . . . Electromagnetic . | . . . . . . . . . . . . . . . . . . . Impact . | . . . . . . . . . . . . . . . . . . . Slashing 242 | . . . . . . . . . . 242 . . . . . . . . Piercing . | . . . . . . . . . . . . . . . . . . . Highest Corruption 7 | . 4 4 4 4 . . . . . 4 4 . 7 7 . . . 1 Average Corruption 4 | . 3 4 4 4 . . . . . 4 4 . 7 7 . . . 1 Corruption Purged . | . . . . . . . . . . . . . . . . . . . Corruption Blocked . | . . . . . . . . . . . . . . . . . . . Effects 46 | . 5 1 4 12 . . . . . 1 8 . 1 14 . . . . Message Errors 11 | . 2 . . . . . . . . 1 2 . 1 5 . . . . Matter Fused 11 | . . . 1 5 . . . . . . 2 . . 3 . . . . Heat Flow Errors 7 | . 2 . . 3 . . . . . . 1 . . 1 . . . . Energy Discharges 6 | . . 1 . 1 . . . . . . 2 . . 2 . . . . Data Loss (minor) 6 | . . . 1 2 . . . . . . 1 . . 2 . . . . Data Loss (major) 3 | . . . 2 1 . . . . . . . . . . . . . . Alerts 1 | . . . . . . . . . . . . . . 1 . . . . Weapon Failures 1 | . 1 . . . . . . . . . . . . . . . . . Overload Shots . | . . . . . . . . . . . . . . . . . . . Overflow Damage 98 | . . . . 34 . . . . . 64 . . . . . . . . Projectiles . | . . . . . . . . . . . . . . . . . . . Explosions 34 | . . . . 34 . . . . . . . . . . . . . . Melee 64 | . . . . . . . . . . 64 . . . . . . . . Knockbacks . | . . . . . . . . . . . . . . . . . . . Impact . | . . . . . . . . . . . . . . . . . . . Kinetic . | . . . . . . . . . . . . . . . . . . . Secondary . | . . . . . . . . . . . . . . . . . . . Self-Inflicted Damage 93 | . 12 . . 28 . . . 28 . . 20 . . . . 3 . 2 Shots 5 | . 1 . . 3 . . . 1 . . . . . . . . . . Rammed 10 | . . . . . . 2 . 2 . . 2 . . . . 2 1 1 Targets Rammed 10 | . . . . . . 2 . 2 . . 2 . . . . 2 1 1 Kicked . | . . . . . . . . . . . . . . . . . . . Crushed . | . . . . . . . . . . . . . . . . . . . Highest Temperature 265 | . 160 . . 265 8 17 . 20 64 . 177 3 . 224 13 134 . . Average Temperature 49 | . 47 . . 89 4 10 . 7 26 . 44 3 . 114 6 52 . . Received Heat Transfer 987 | . 90 . . 225 126 99 . 45 228 . 111 . . 9 9 27 9 9 Siege Activations . | . . . . . . . . . . . . . . . . . . . Robots Corrupted . | . . . . . . . . . . . . . . . . . . . Combat Hostiles . | . . . . . . . . . . . . . . . . . . . Parts Fried . | . . . . . . . . . . . . . . . . . . . Impact Corruptions . | . . . . . . . . . . . . . . . . . . . Robots Melted . | . . . . . . . . . . . . . . . . . . . Combat Hostiles . | . . . . . . . . . . . . . . . . . . . Parts Melted . | . . . . . . . . . . . . . . . . . . . Heat Transferred 100 | . . . . 100 . . . . . . . . . . . . . . Parts Sabotaged . | . . . . . . . . . . . . . . . . . . . Parts Stolen . | . . . . . . . . . . . . . . . . . . . Parts Stripped . | . . . . . . . . . . . . . . . . . . . Power Chain Reactions . | . . . . . . . . . . . . . . . . . . . Alert | -11 -10 -10 -10 -9 -8 -7 -7 -7 -7 -6 -6 -5 -5 -5 -4 -3 -2 -1 ------- Run | Yrd Mat Min Exi Min Mat Fac Was Fac Sto Fac Ext Fac Was Fac Fac Res Res Acc Peak Influence 372 | . 190 73 . 258 233 135 77 76 372 188 324 30 40 86 57 142 92 205 Initial 168 | . . 73 . . 14 100 47 53 6 168 86 . 10 28 21 29 76 55 Average 75 | . 46 73 . 102 29 118 72 35 120 177 188 1 28 51 39 54 79 131 Maximum Alert Level 1 | . . . . 1 1 . . . 1 . 1 . . . . . . 1 Low Security (%) 95 | . 100 100 . 94 97 100 100 100 83 100 65 100 100 100 100 100 100 94 Level 1 4 | . . . . 5 2 . . . 16 . 34 . . . . . . 5 Level 2 . | . . . . . . . . . . . . . . . . . . . Level 3 . | . . . . . . . . . . . . . . . . . . . Level 4 . | . . . . . . . . . . . . . . . . . . . Level 5 . | . . . . . . . . . . . . . . . . . . . High Security . | . . . . . . . . . . . . . . . . . . . Max Security . | . . . . . . . . . . . . . . . . . . . Squads Dispatched 24 | . 1 . . . 7 2 . 4 2 . 2 . . 1 . 3 . 2 Investigation 7 | . 1 . . . 2 2 . . . . 1 . . 1 . . . . Extermination 2 | . . . . . . . . 1 . . . . . . . . . 1 Reinforcement 15 | . . . . . 5 . . 3 2 . 1 . . . . 3 . 1 Assault . | . . . . . . . . . . . . . . . . . . . Garrison . | . . . . . . . . . . . . . . . . . . . Intercept . | . . . . . . . . . . . . . . . . . . . Searches Triggered . | . . . . . . . . . . . . . . . . . . . Construction Impeded 2 | . . . . . . . . 1 . . 1 . . . . . . . Haulers Reinforced . | . . . . . . . . . . . . . . . . . . . Active Scanning Responses . | . . . . . . . . . . . . . . . . . . . Cargo Convoy Interrupts . | . . . . . . . . . . . . . . . . . . . Stealth | -11 -10 -10 -10 -9 -8 -7 -7 -7 -7 -6 -6 -5 -5 -5 -4 -3 -2 -1 --------- Run | Yrd Mat Min Exi Min Mat Fac Was Fac Sto Fac Ext Fac Was Fac Fac Res Res Acc Distress Signals 12 | . 1 . . . 1 . . 2 1 . 1 1 . . 1 1 . 3 Communications Jammed 31 | . . . . . . . . . . . . . . . . . . 31 Distress Signals 26 | . . . . . . . . . . . . . . . . . . 26 Times Spotted 168 | . 9 . . 14 31 12 6 9 21 . 14 2 4 3 2 16 5 20 Peak Tracking Total 16 | . 4 . . 4 16 13 6 6 13 . 7 4 4 3 4 12 5 9 Tactical Retreats 20 | . . . . . 2 . . 3 2 . 3 . . . 1 5 . 4 Traps | -11 -10 -10 -10 -9 -8 -7 -7 -7 -7 -6 -6 -5 -5 -5 -4 -3 -2 -1 ------- Run | Yrd Mat Min Exi Min Mat Fac Was Fac Sto Fac Ext Fac Was Fac Fac Res Res Acc Traps Triggered 18 | . 2 . . . 1 2 . 1 1 3 5 1 . 1 1 . . . Indirectly . | . . . . . . . . . . . . . . . . . . . Trap Hack Attempts . | . . . . . . . . . . . . . . . . . . . Triggered . | . . . . . . . . . . . . . . . . . . . Disarmed . | . . . . . . . . . . . . . . . . . . . Reprogrammed . | . . . . . . . . . . . . . . . . . . . Reused . | . . . . . . . . . . . . . . . . . . . Traps Extracted . | . . . . . . . . . . . . . . . . . . . Installed . | . . . . . . . . . . . . . . . . . . . Triggered . | . . . . . . . . . . . . . . . . . . . Machines | -11 -10 -10 -10 -9 -8 -7 -7 -7 -7 -6 -6 -5 -5 -5 -4 -3 -2 -1 ---------- Run | Yrd Mat Min Exi Min Mat Fac Was Fac Sto Fac Ext Fac Was Fac Fac Res Res Acc Machines Disabled 3 | . 1 . . 2 . . . . . . . . . . . . . . Max in Single Turn 1 | . 1 . . 1 . . . . . . . . . . . . . . Garrison Access 4 | . . . . . . . . 2 . 1 . . . . 1 . . . Energy Cycler 1 | . . . . . . . . . . . 1 . . . . . . . Machines Repaired . | . . . . . . . . . . . . . . . . . . . Machines Dismantled . | . . . . . . . . . . . . . . . . . . . Machines Sabotaged . | . . . . . . . . . . . . . . . . . . . Overloaded Fab Kills . | . . . . . . . . . . . . . . . . . . . Hacking | -11 -10 -10 -10 -9 -8 -7 -7 -7 -7 -6 -6 -5 -5 -5 -4 -3 -2 -1 --------- Run | Yrd Mat Min Exi Min Mat Fac Was Fac Sto Fac Ext Fac Was Fac Fac Res Res Acc Machines Accessed 47 | . 2 . . . 5 6 . 10 4 2 5 1 . 3 2 4 1 2 Terminals 29 | . 1 . . . 4 2 . 5 4 . 5 . . . 1 4 1 2 Fabricators 4 | . . . . . . . . 1 . 1 . 1 . 1 . . . . Repair Stations 1 | . . . . . . . . . . . . . . 1 . . . . Recycling Units 6 | . 1 . . . 1 3 . 1 . . . . . . . . . . Scanalyzers 2 | . . . . . . . . 1 . . . . . 1 . . . . Garrison Access 5 | . . . . . . 1 . 2 . 1 . . . . 1 . . . Total Hacks 99 | . 9 . . . 11 11 . 17 8 2 8 2 . 7 4 14 1 5 Successful 40 | . 1 . . . 2 3 . 7 4 2 4 . . 6 2 6 1 2 Failed 59 | . 8 . . . 9 8 . 10 4 . 4 2 . 1 2 8 . 3 Catastrophic 7 | . 2 . . . . 1 . 2 . . . . . . 1 1 . . Database Lockouts . | . . . . . . . . . . . . . . . . . . . Manual 29 | . . . 1 . 6 2 . 9 1 . 1 . . . 2 6 1 . Terminals 66 | . 5 . . . 8 4 . 10 8 . 8 . . . 3 14 1 5 Fabricators 6 | . . . . . . . . 2 . 1 . 2 . 1 . . . . Repair Stations 4 | . . . . . . . . . . . . . . 4 . . . . Recycling Units 13 | . 4 . . . 3 5 . 1 . . . . . . . . . . Scanalyzers 4 | . . . . . . . . 2 . . . . . 2 . . . . Garrison Access 6 | . . . . . . 2 . 2 . 1 . . . . 1 . . . Terminal Hacks 20 | . . . . . 1 . . 1 4 . 4 . . . 1 6 1 2 Open Door 8 | . . . . . . . . . 3 . 4 . . . . . . 1 Level Access Points 5 | . . . . . 1 . . . 1 . . . . . . 1 1 1 Branch Access Points 1 | . . . . . . . . . . . . . . . . 1 . . Emergency Access Points 1 | . . . . . . . . . . . . . . . . 1 . . Terminal Index 1 | . . . . . . . . . . . . . . . 1 . . . Unreport Threat 4 | . . . . . . . . 1 . . . . . . . 3 . . Fabricator Hacks 3 | . . . . . . . . 1 . 1 . . . 1 . . . . Build 3 | . . . . . . . . 1 . 1 . . . 1 . . . . Repair Station Hacks 3 | . . . . . . . . . . . . . . 3 . . . . Scan Component 2 | . . . . . . . . . . . . . . 2 . . . . Repair 1 | . . . . . . . . . . . . . . 1 . . . . Recycling Unit Hacks 6 | . 1 . . . 1 3 . 1 . . . . . . . . . . Retrieve Matter 4 | . . . . . 1 3 . . . . . . . . . . . . Retrieve Components 2 | . 1 . . . . . . 1 . . . . . . . . . . Scanalyzer 4 | . . . . . . . . 2 . . . . . 2 . . . . Insert Component 2 | . . . . . . . . 1 . . . . . 1 . . . . Analyze 2 | . . . . . . . . 1 . . . . . 1 . . . . Garrison Access Hacks 4 | . . . . . . . . 2 . 1 . . . . 1 . . . Seal Access 4 | . . . . . . . . 2 . 1 . . . . 1 . . . Unauthorized Hacks . | . . . . . . . . . . . . . . . . . . . Terminals . | . . . . . . . . . . . . . . . . . . . Fabricators . | . . . . . . . . . . . . . . . . . . . Repair Stations . | . . . . . . . . . . . . . . . . . . . Recycling Units . | . . . . . . . . . . . . . . . . . . . Scanalyzers . | . . . . . . . . . . . . . . . . . . . Garrison Access . | . . . . . . . . . . . . . . . . . . . Data Cores Recovered . | . . . . . . . . . . . . . . . . . . . Used . | . . . . . . . . . . . . . . . . . . . Hacking Detections 38 | . 2 . . . 5 5 . 7 3 1 5 1 . 2 1 4 . 2 Full Trace Events 5 | . 2 . . . 1 1 . . . . . . . 1 . . . . Feedback Events . | . . . . . . . . . . . . . . . . . . . Feedback Blocked . | . . . . . . . . . . . . . . . . . . . Robot Schematics Acquired . | . . . . . . . . . . . . . . . . . . . Robots Built 4 | . . . . . . . . 3 . 1 . . . . . . . . Authchips . | . . . . . . . . . . . . . . . . . . . Time 174 | . . . . . . . . 134 . 40 . . . . . . . . Total Robot Build Rating 13 | . . . . . . . . 12 . 1 . . . . . . . . Part Schematics Acquired 1 | . . . . . . . . . . . . . . 1 . . . . Parts Built 1 | . . . . . . . . . . . . . . 1 . . . . Authchips . | . . . . . . . . . . . . . . . . . . . Time 139 | . . . . . . . . . . . . . . 139 . . . . Total Part Build Rating 9 | . . . . . . . . . . . . . . 9 . . . . Parts Repaired 1 | . . . . . . . . . . . . . . 1 . . . . Time 17 | . . . . . . . . . . . . . . 17 . . . . Parts Recycled . | . . . . . . . . . . . . . . . . . . . Recycled Matter . | . . . . . . . . . . . . . . . . . . . Retrieved Matter . | . . . . . . . . . . . . . . . . . . . Retrieved Components 4 | . 2 . . . . . . 2 . . . . . . . . . . Parts Scanalyzed 2 | . . . . . . . . 1 . . . . . 1 . . . . Part Schematics Acquired 1 | . . . . . . . . . . . . . . 1 . . . . Parts Damaged . | . . . . . . . . . . . . . . . . . . . Bothacking | -11 -10 -10 -10 -9 -8 -7 -7 -7 -7 -6 -6 -5 -5 -5 -4 -3 -2 -1 ------------ Run | Yrd Mat Min Exi Min Mat Fac Was Fac Sto Fac Ext Fac Was Fac Fac Res Res Acc Used RIF Installer . | . . . . . . . . . . . . . . . . . . . Robots Hacked . | . . . . . . . . . . . . . . . . . . . Non-combat . | . . . . . . . . . . . . . . . . . . . Combat . | . . . . . . . . . . . . . . . . . . . Robot Hacks Applied . | . . . . . . . . . . . . . . . . . . . Relay Couplers Released . | . . . . . . . . . . . . . . . . . . . Fabnet Peak Effective % . | . . . . . . . . . . . . . . . . . . . Robots Rewired 7 | . . . . . . . . . . . 7 . . . . . . . Allies Hacked . | . . . . . . . . . . . . . . . . . . . Hacks Repelled . | . . . . . . . . . . . . . . . . . . . Allies | -11 -10 -10 -10 -9 -8 -7 -7 -7 -7 -6 -6 -5 -5 -5 -4 -3 -2 -1 -------- Run | Yrd Mat Min Exi Min Mat Fac Was Fac Sto Fac Ext Fac Was Fac Fac Res Res Acc Total Allies 29 | . . . . 1 . . . 3 10 1 14 . . . . . . . Largest Group 11 | . . . . 1 . . . 3 10 1 11 . . . . . . . Highest-Rated Group 311 | . . . . 31 . . . 60 173 8 311 . . . . . . . Highest-Rated Ally 39 | . . . . 31 . . . 20 29 8 39 . . . . . . . Total Orders . | . . . . . . . . . . . . . . . . . . . Ally Attacks 145 | . . . . 1 . . . 26 61 . 57 . . . . . . . Total Damage 2733 | . . . . . . . . 638 937 . 1158 . . . . . . . Kills 22 | . . . . . . . . 4 11 . 7 . . . . . . . Allies Corrupted . | . . . . . . . . . . . . . . . . . . . Allies Melted 1 | . . . . . . . . . . . 1 . . . . . . . Intel | -11 -10 -10 -10 -9 -8 -7 -7 -7 -7 -6 -6 -5 -5 -5 -4 -3 -2 -1 ------- Run | Yrd Mat Min Exi Min Mat Fac Was Fac Sto Fac Ext Fac Was Fac Fac Res Res Acc Robot Analysis Total . | . . . . . . . . . . . . . . . . . . . Derelict Logs Recovered 1 | . . . . 1 . . . . . . . . . . . . . . Drone Launches . | . . . . . . . . . . . . . . . . . . . Drone Recoveries . | . . . . . . . . . . . . . . . . . . . Exploration | -11 -10 -10 -10 -9 -8 -7 -7 -7 -7 -6 -6 -5 -5 -5 -4 -3 -2 -1 ------------- Run | Yrd Mat Min Exi Min Mat Fac Was Fac Sto Fac Ext Fac Was Fac Fac Res Res Acc Turns Passed 6175 | . 318 24 325 474 679 253 41 1235 160 307 408 174 36 626 147 329 200 439 Spaces Moved 6989 | 1 221 21 261 328 358 622 100 967 342 462 377 318 108 303 398 844 183 775 Core 13 | . . . 1 . . . . 1 . . . . . . . . . 11 Treads . | . . . . . . . . . . . . . . . . . . . Legs 831 | 1 221 21 260 328 . . . . . . . . . . . . . . Wheels . | . . . . . . . . . . . . . . . . . . . Hover 542 | . . . . . . . . . . 153 377 9 . 3 . . . . Flight 5603 | . . . . . 358 622 100 966 342 309 . 309 108 300 398 844 183 764 Fastest Speed 24 | 120 120 120 120 120 39 39 39 39 39 30 40 28 28 28 24 24 32 34 Average Speed 45 | 120 120 120 121 120 39 39 39 39 39 37 40 28 28 30 27 24 32 38 Slowest Speed 400 | 120 120 120 350 120 42 39 39 400 39 120 44 109 28 200 29 32 34 400 Overloaded Moves . | . . . . . . . . . . . . . . . . . . . Propulsion Burnouts . | . . . . . . . . . . . . . . . . . . . Robots Hopped 82 | . . . . . 13 9 . 7 15 2 . 2 . . 1 21 . 12 Cave-ins Triggered . | . . . . . . . . . . . . . . . . . . . Exploration Rate (%) 31 | 2 50 6 43 73 47 24 78 26 49 11 39 7 75 8 9 17 7 27 Regions Visited 18 Branch Regions 5 Pre-discovered Areas . | . . . . . . . . . . . . . . . . . . . Known Exits Taken 6 | . . . . . 1 . . . 1 . . . . 1 1 1 1 . Unknown Exits Taken 8 | 1 1 1 1 1 . . . 1 . 1 1 . . . . . . . Scrap Searched 1 | . . . . 1 . . . . . . . . . . . . . . Spaces Dug . | . . . . . . . . . . . . . . . . . . . Terrain Destroyed 126 | . 35 . . 56 . . . 35 . . . . . . . . . . Melee . | . . . . . . . . . . . . . . . . . . . Projectile . | . . . . . . . . . . . . . . . . . . . AOE 126 | . 35 . . 56 . . . 35 . . . . . . . . . . Terrain Rammed . | . . . . . . . . . . . . . . . . . . . Walls Destroyed . | . . . . . . . . . . . . . . . . . . . Machines Disabled . | . . . . . . . . . . . . . . . . . . . Actions | -11 -10 -10 -10 -9 -8 -7 -7 -7 -7 -6 -6 -5 -5 -5 -4 -3 -2 -1 --------- Run | Yrd Mat Min Exi Min Mat Fac Was Fac Sto Fac Ext Fac Was Fac Fac Res Res Acc Total 9856 | . 252 20 272 378 883 619 101 1803 351 587 633 406 113 838 434 942 322 902 Wait 2494 | . 6 . . 17 514 . . 799 19 87 135 39 6 508 6 102 132 124 Move 6814 | . 220 20 260 327 333 604 99 952 311 457 376 315 107 302 395 803 182 751 Hop 77 | . . . . . 11 9 . 7 15 2 . 1 . . 1 20 . 11 Pick Up 50 | . 4 . 1 2 8 2 1 9 1 6 1 3 . 3 . 5 2 2 Fast Attach 37 | . 2 . 2 1 2 . . 2 . 7 . 8 . 7 3 1 . 2 Attach 61 | . 3 . . 3 2 1 . 11 1 10 1 12 . 3 4 4 2 4 Detach 43 | . 4 . . 1 1 . . 4 . 6 . 13 . 6 5 2 . 1 Swap 5 | . . . . . . . . . . . . 3 . 1 1 . . . Drop 63 | . 1 . 6 1 8 1 1 6 . 5 . 12 . 8 1 4 3 6 Fire 50 | . 12 . . 26 4 . . 8 . . . . . . . . . . Melee 5 | . . . . . . . . . 1 4 . . . . . . . . Ram 9 | . . . . . . 2 . 2 . . 2 . . . . 1 1 1 Kick . | . . . . . . . . . . . . . . . . . . . Crush . | . . . . . . . . . . . . . . . . . . . Escape Stasis 43 | . . . . . . . . 3 3 3 16 . . . 18 . . . Rewire 105 | . . . 3 . . . . . . . 102 . . . . . . . Trap . | . . . . . . . . . . . . . . . . . . . Miscellaneous . | . . . . . . . . . . . . . . . . . . . Route ------- -11/Scrapyard -10/Materials (discovered 2 exits: [*Mat] / [*Min]) -10/Mines -10/Exiles -9/Mines -8/Materials (discovered 3 exits: *Fac x3) -7/Factory -7/Waste -7/Factory -7/Storage -6/Factory -6/Extension -5/Factory -5/Waste -5/Factory -4/Factory (discovered 2 exits: *Res / [*Upp]) -3/Research (discovered 6 exits: *Res x3 / Arm / *Tes x2) -2/Research (discovered 3 exits: *Acc x3) -1/Access To Epsilon Eridani History --------- Turn | Location | Event 1 | -11/Scrapyard | Discovered new exit (range 0) 1 | -11/Scrapyard | Entered Materials 130 | -10/Materials | Discovered new exit (range 16) 259 | -10/Materials | Discovered new exit (range 16) 309 | -10/Materials | Build established: Mutant 319 | -10/Materials | Entered Mines 339 | -10/Mines | Deemed a non-threat by the Exiles lab entrance 339 | -10/Mines | Discovered new exit (range 5) 343 | -10/Mines | Entered Exiles 372 | -10/Exiles | Met 8R-AWN 393 | -10/Exiles | Met EX-HEX 431 | -10/Exiles | Met EX-BIN 453 | -10/Exiles | Aligned with FarCom system 454 | -10/Exiles | Given EX-Vault access code 499 | -10/Exiles | Opened EX-Vault 517 | -10/Exiles | Found Prototype Flight Unit 554 | -10/Exiles | Warned to stay clear of 0b10 Research branches 652 | -10/Exiles | Discovered new exit (range 14) 668 | -10/Exiles | Left Exiles lab with Flying Fortress v7 668 | -10/Exiles | Entered Mines 931 | -9/Mines | Found a hidden stash of uninstalled traps 941 | -9/Mines | Received a Mining Laser from a helpful Derelict 943 | -9/Mines | Learned Materials stockpile data 1102 | -9/Mines | Excavation squad dispatched 1102 | -9/Mines | A large section of the Mines collapsed 1131 | -9/Mines | Discovered new exit (range 10) 1141 | -9/Mines | Core integrity fell below 50% 1142 | -9/Mines | Entered Materials 1142 | -8/Materials | Evolved 4 slots: Propulsion x3, Utility x1 1143 | -8/Materials | Identified Flying Fortress v7 1802 | -8/Materials | Identified exit to Factory 1821 | -8/Materials | Entered Factory 1821 | -7/Factory | Evolved 2 slots: Utility x2 2074 | -7/Factory | Sucked down chute 2074 | -7/Factory | Entered Waste 2078 | -7/Waste | Spotted C-40 Crusher 2080 | -7/Waste | Spotted C-40 Crusher 2082 | -7/Waste | Spotted C-40 Crusher 2084 | -7/Waste | Spotted C-40 Crusher 2085 | -7/Waste | Spotted C-40 Crusher 2089 | -7/Waste | Spotted C-40 Crusher 2110 | -7/Waste | Discovered new exit (range 13) 2115 | -7/Waste | Entered Factory 2499 | -7/Factory | Fabricated B-48 Gladiator? 2569 | -7/Factory | Build established: Hacker-Mutant 3168 | -7/Factory | Build established: Hacker-Ninja 3346 | -7/Factory | Discovered new exit (range 8) 3350 | -7/Factory | Entered Storage 3445 | -7/Storage | Identified exit to Factory 3472 | -7/Storage | Assisted by bots powering up and referring to "LRC-V3" 3510 | -7/Storage | Entered Factory 3510 | -6/Factory | Evolved 2 slots: Propulsion x1, Utility x1 3660 | -6/Factory | Fabricated R-06 Scavenger (x1) 3810 | -6/Factory | Discovered new exit (range 15) 3817 | -6/Factory | Entered Extension 3865 | -6/Extension | Rescued a captive Derelict 3894 | -6/Extension | Rescued a captive Derelict 3915 | -6/Extension | Energy Cycler disabled 3916 | -6/Extension | Rescued a captive Derelict 3916 | -6/Extension | Rescued a captive Derelict 3916 | -6/Extension | Rescued a captive Derelict 3917 | -6/Extension | Rescued a captive Derelict 3917 | -6/Extension | Rescued a captive Derelict 3918 | -6/Extension | Rescued a captive Derelict 4199 | -6/Extension | Spotted B-75 Beast 4207 | -6/Extension | Spotted B-75 Beast 4209 | -6/Extension | Discovered new exit (range 15) 4225 | -6/Extension | Entered Factory 4225 | -5/Factory | Evolved 2 slots: Propulsion x1, Utility x1 4255 | -5/Factory | Lost 9 allies 4399 | -5/Factory | Sucked down chute 4399 | -5/Factory | Entered Waste 4402 | -5/Waste | Spotted C-40 Crusher 4402 | -5/Waste | Spotted C-40 Crusher 4404 | -5/Waste | Spotted C-40 Crusher 4414 | -5/Waste | EMP discharged 4414 | -5/Waste | Spotted C-40 Crusher 4415 | -5/Waste | Spotted C-40 Crusher 4416 | -5/Waste | Spotted C-40 Crusher 4418 | -5/Waste | Discovered new exit (range 16) 4435 | -5/Waste | Entered Factory 4524 | -5/Factory | Repaired Broken Cesium-ion Thruster 4546 | -5/Factory | Build established: Hacker-Sprinter 5011 | -5/Factory | Fabricated Adv. Phase Shifter (x1) 5056 | -5/Factory | Discovered new exit (range 16) 5060 | -5/Factory | Identified exit to Factory 5061 | -5/Factory | Entered another Factory area 5061 | -4/Factory | Evolved 2 slots: Utility x2 5072 | -4/Factory | Discovered new exit (range 8) 5076 | -4/Factory | Identified exit to Research 5128 | -4/Factory | Discovered new exit (range 12) 5195 | -4/Factory | Spotted B-86 Titan 5208 | -4/Factory | Entered Research 5208 | -3/Research | Evolved 2 slots: Power x1, Utility x1 5295 | -3/Research | Identified exit to Armory 5295 | -3/Research | Identified exit to Testing 5335 | -3/Research | Identified exit to Research 5349 | -3/Research | Build established: Wizard-Sprinter 5520 | -3/Research | Spotted B-86 Titan 5537 | -3/Research | Entered another Research area 5537 | -2/Research | Evolved 2 slots: Propulsion x2 5566 | -2/Research | Lost 4 parts (3n1u) 5690 | -2/Research | Spotted B-90 Cyclops 5697 | -2/Research | Identified exit to Access 5737 | -2/Research | Entered Access 5737 | -1/Access | Evolved 2 slots: Propulsion x1, Utility x1 5752 | -1/Access | Identified exit to Surface 5989 | -1/Access | Spotted B-99 Colossus 6056 | -1/Access | Lost 5 parts (1p3n1u) 6074 | -1/Access | Build established: Wizard-Mutant 6101 | -1/Access | Spotted B-99 Colossus 6134 | -1/Access | Spotted B-99 Colossus 6134 | -1/Access | Spotted B-99 Colossus 6176 | *** | Escaped! Last Messages --------------- Slug penetrates Garrison Access. Penetrated by Slug. Slug penetrates A-15 Conveyor. K-01 Serf cleans the Terminal. Penetrated by Slug. Dropped Adv. Cryofiber Web. Dropped Imp. Field Recycling Unit. Dropped Drone Bay. Dropped Med. Storage Unit. Spectral Interrupter explodes. Door malfunctions. Emergency Access malfunctions. H-81 Overseer calls for reinforcements. ALERT: Suspicious intruders detected, dispatching Cutter reinforcements to area. Connecting with Terminal... >>Open(Door) Sealed Barrier opened. The Access Shell folds into the floor. [Achievement: Epsilon Run] Map ----- +----------------------------------------------------+ | ?????????????????????????????????????????????????? | | ?????????????????????????????????????????????????? | | ?????????????????????????????????????????????????? | | ?????????????????????????????????????????????????? | | ?????????????????????????????????????????????????? | | ?????????????????????????????????????????????????? | | ?????????????????????????????????????????????????? | | ?????????????????????????????????????????????????? | | ?????????????????????????????????????????????????? | | ?????????????????????????????????????????????????? | | ?????????????????????????????????????????????????? | | ?????????????????????????????????????????????????? | | ?????????????????????????????????????????????????? | | ####?????????????????????????Y???????? ?????????? | | #?????????????????????????????????? #????????? | | #?????????????????????????????????? #????????? | | #?????????????????????????????????? #????????? | | #?????????????????????????????????? ^#????????? | | #?????????????????????????????????? #????????? | | #?????????????????????????###?????? #????????? | | #????????????????########## ####### #????????? | | #????????????????" #????????? | | ?????????? BB ???" #????????? | | ########## BB "??" #????????? | | "??" #????????? | | "??" "@ #????????? | | "??" "" #????????? | | BB"??" #????????? | | ########## BB???" #????????? | | !!#???????? ???" """ """ #????????? | | !!#???????????????" """T""" #????????? | | #???????????????########## ####### #????????? | | #????????????????????????###?????# #????????? | | #????????????????????????????????# #????????? | | #????????????????????????????????# #????????? | | #?????###########????????????????# #????????? | | #?????# " #????????????????# #????????? | | ####### """ #??############### #????????? | | / + """ #??# #????????? | | ####### " #??# pp +????????? | | #?????# #??# ########+### #????????? | | #####?????# #??# #?????? ?# #????????? | | ??????????# #??# #?????? ?# #????????? | | ??????????# ] #??# #????? ## #????????? | | ?????# ###+########## #????? ## #????????? | | ?????# #????"" ## #????????? | | ?????# #????""" ## #????????? | | ?????# #####+###+##??? " #? ????????? | | ?????## #?????????????? +? ????????? | | ??????# #??????????????? #? ????????? | +----------------------------------------------------+ Best States ------------- Heat Dissipation 52 Energy Generation 34 Energy Capacity 400 Matter Stores 300 Matter Capacity 300 Sight Range 16 Terrain Scan Range 16 Terrain Scan Density 10 ECM Strength 1 Jamming Range 12 Base Temperature (-) 200 Armor Coverage 450 Evasion (%) 65 Offensive Hacking 36 Defensive Hacking 24 Item Schematics ----------------- Imp. Light Armor Plating | -5/Factory | Scanalyzed Robot Schematics ------------------ None Fabricated ------------ B-48 Gladiator | x3 | -7/Factory | Preloaded R-06 Scavenger | x1 | -6/Factory | Preloaded Adv. Phase Shifter | x1 | -5/Factory | Preloaded Alien Tech Used ----------------- None Achievements -------------- Below Epsilon Run Challenges ------------ None Game ------ Seed CommGuidanceCorpse Manual? 0 Play Time 01:51:31 Cumulative 31.2 hours Start 2024.04.16 @ 16:26:10 End 2024.04.16 @ 18:55:00 Sessions 3 Manual Loads 0 Difficulty Rogue Special Mode None Game No. 86 Rogue 86 Adventurer 0 Explorer 0 Win Type 0 Total 1 Types 1/0/0/0/0/0/0/0/0 Lore% 17 Gallery% 34 Achievement% 27 Wizard Run 0 Options --------- Layout 1 ASCII 1 Keyboard 0 Movement Arrows Keybinds 1 Fullscreen 1 Font 18/SmallcapsGlow Map View 50x40 Zoom Use 0% Tactical HUD 0 Map Filters NONE Filters NONE Steam 1 RUN: 3297a0f7-1c00-435b-bdf2-6cb7822fee90